bitfinex-derivatives/quotes_SOLF0:USTF0_20251209
["timestamp","ask_amount","ask_price","bid_price","bid_amount"]
[1765277212475,3.22,132.19,132.17,64.28]
[1765277212778,3.26860482,132.19,132.17,64.31897006]
[1765277214176,3.22,132.18,132.17,0.03897006]
[1765277215369,10.029,132.18,132.17,0.03897006]
[1765277218173,3.36,132.16,132.13,8.90849997]
[1765277219176,3.40894064,132.16,132.13,0.05]
[1765277219683,3.40894064,132.16,132.12,0.05]
[1765277219878,3.36,132.14,132.11,8.90949997]
[1765277220180,3.36,132.14,132.11,6.8626]
[1765277220378,3.36,132.13,132.1,8.90999997]
[1765277220681,3.41754856,132.13,132.1,0.05]
[1765277221692,0.05754856,132.13,132.12,0.05]
[1765277221875,3.36,132.18,132.12,0.05]
[1765277222075,2.04689997,132.21,132.16,0.05]
[1765277222076,3.36,132.21,132.16,0.05]
[1765277222277,3.36,132.21,132.18,0.05]
[1765277222780,0.04880098,132.21,132.19,2.09689997]
[1765277223677,3.45880098,132.21,132.19,2.04689997]
[1765277223882,3.45880098,132.21,132.18,0.05002113]
[1765277224790,3.45880098,132.21,132.18,0.10002113]
[1765277226379,0.04880098,132.21,132.19,2.09689997]
[1765277226585,0.04880098,132.21,132.2,0.05]
[1765277227680,3.45880098,132.21,132.19,8.85519997]
[1765277228289,3.45880098,132.21,132.19,8.90519997]
[1765277228681,0.04880098,132.21,132.19,8.90519997]
[1765277230380,3.45880098,132.21,132.18,0.05002113]
[1765277233491,6.808,132.2,132.18,0.05002113]
[1765277233691,3.41,132.19,132.18,0.05002113]
[1765277234290,0.04880098,132.21,132.18,0.05002113]
[1765277234489,3.41,132.2,132.18,0.05002113]
[1765277234705,0.04880098,132.21,132.18,0.10002113]
[1765277234883,0.04880098,132.21,132.19,0.05]
[1765277236693,0.04880098,132.21,132.19,6.8585]
[1765277237088,0.04880098,132.21,132.2,8.90489997]
[1765277240793,0.04880098,132.21,132.2,6.858]
[1765277245698,3.41,132.26,132.23,0.05]
[1765277246390,10.215,132.26,132.22,6.8065]
[1765277246591,3.46795082,132.25,132.23,0.05187161]
[1765277247191,3.46795082,132.25,132.23,6.90817161]
[1765277248398,0.05795082,132.25,132.24,0.04]
[1765277249099,3.30795082,132.25,132.23,6.85817161]
[1765277250095,0.05795082,132.25,132.24,0.04]
[1765277250296,3.30795082,132.25,132.23,6.85817161]
[1765277251103,0.05795082,132.25,132.23,6.89817161]
[1765277254405,0.05795082,132.25,132.24,0.04]
[1765277255901,0.05795082,132.25,132.24,6.8459]
[1765277256100,3.25,132.3,132.25,0.04]
[1765277256299,67.55,132.32,132.25,0.04]
[1765277256505,3.25,132.31,132.25,0.04]
[1765277257301,3.29914925,132.29,132.27,0.09667783]
[1765277257516,3.29914925,132.29,132.27,6.90097783]
[1765277258405,0.04914925,132.29,132.27,6.90097783]
[1765277259310,3.29914925,132.29,132.27,0.05667783]
[1765277260501,3.25,132.28,132.27,0.05667783]
[1765277261915,10.10244925,132.29,132.27,0.05667783]
[1765277263016,3.25,132.28,132.27,0.05667783]
[1765277264817,10.0538,132.28,132.27,0.05667783]
[1765277271124,3.25,132.26,132.23,6.8064]
[1765277271420,3.25,132.26,132.23,6.8464]
[1765277272122,3.30287435,132.26,132.23,6.89579031]
[1765277273519,0.05287435,132.26,132.25,0.04]
[1765277274326,0.05287435,132.26,132.25,6.8454]
[1765277274917,0.05287435,132.26,132.25,0.04]
[1765277275120,3.30287435,132.26,132.23,6.89529031]
[1765277276622,3.30287435,132.26,132.23,6.85529031]
[1765277276828,3.30287435,132.26,132.23,6.89529031]
[1765277277222,3.30287435,132.26,132.24,0.04]
[1765277278026,0.05287435,132.26,132.24,0.04]
[1765277279926,0.05287435,132.26,132.23,0.04939031]
[1765277280127,0.05287435,132.26,132.25,0.04]
[1765277281029,3.17287435,132.26,132.24,0.04]
[1765277281529,3.17287435,132.26,132.23,0.08939031]
[1765277282122,3.17287435,132.26,132.23,6.89529031]
[1765277282327,3.17287435,132.26,132.23,6.85529031]
[1765277284129,3.17287435,132.26,132.23,6.89529031]
[1765277284330,3.12,132.25,132.23,6.89529031]
[1765277285522,3.41287435,132.26,132.23,6.89529031]
[1765277285830,3.41287435,132.26,132.24,6.8458]
[1765277287233,0.05287435,132.26,132.25,6.8454]
[1765277289035,6.8028,132.3,132.24,64.28]
[1765277289434,3.36,132.31,132.24,64.28]
[1765277289634,5.81939792,132.3,132.24,64.28]
[1765277289835,3.36,132.31,132.24,64.28]
[1765277290136,0.05552248,132.29,132.27,6.8043]
[1765277291043,3.36,132.33,132.3,6.8027]
[1765277291246,3.36,132.35,132.3,6.8027]
[1765277291435,14.63726483,132.34,132.3,6.8027]
[1765277291740,9.18021034,132.33,132.3,6.8027]
[1765277291938,3.41120114,132.33,132.3,6.8530145]
[1765277293937,0.05120114,132.33,132.31,6.8022]
[1765277296435,3.41120114,132.33,132.31,6.8022]
[1765277301030,0.05120114,132.33,132.31,6.8022]
[1765277304945,0.05120114,132.33,132.32,6.8018]
[1765277310936,0.05120114,132.33,132.31,6.8023]
[1765277311341,3.44120114,132.33,132.31,6.8023]
[1765277314444,3.44120114,132.33,132.3,6.8531145]
[1765277317551,0.05120114,132.33,132.3,6.8531145]
[1765277317742,3.44120114,132.33,132.3,6.8531145]
[1765277318451,0.05120114,132.33,132.3,6.8531145]
[1765277318963,0.05120114,132.33,132.3,2.09627525]
[1765277320055,0.05120114,132.33,132.31,6.8023]
[1765277320556,0.05120114,132.33,132.32,6.8018]
[1765277323448,3.44120114,132.33,132.31,6.8023]
[1765277326257,3.39,132.32,132.3,0.0503145]
[1765277328358,3.44120114,132.33,132.3,6.8530145]
[1765277328658,0.05120114,132.33,132.3,0.0503145]
[1765277329455,0.05120114,132.33,132.31,6.8023]
[1765277330157,0.05120114,132.33,132.32,6.8018]
[1765277345163,0.00120114,132.33,132.32,6.8018]
[1765277345357,5.48579484,132.38,132.33,105.7969]
[1765277345667,3.24,132.38,132.34,64.24]
[1765277346370,0.04805373,132.37,132.35,0.05473607]
[1765277347261,3.28805373,132.37,132.35,0.05473607]
[1765277352270,0.04805373,132.37,132.36,2.04596075]
[1765277352472,3.24,132.41,132.36,2.04596075]
[1765277352769,3.24,132.42,132.36,2.04596075]
[1765277353475,0.05705411,132.4,132.38,6.84700245]
[1765277354163,3.29705411,132.4,132.38,0.04830245]
[1765277354676,10.0382,132.39,132.38,0.04830245]
[1765277356173,3.24,132.37,132.33,6.8009]
[1765277356969,3.24,132.37,132.34,6.8007]
[1765277357168,3.29430245,132.37,132.34,6.8513935]
[1765277358374,0.05430245,132.37,132.35,6.8002]
[1765277358768,0.05430245,132.37,132.34,2.09665425]
[1765277359369,0.05430245,132.37,132.36,8.84566075]
[1765277359573,0.05430245,132.37,132.36,73.06566075]
[1765277362680,0.05430245,132.37,132.36,71.0197]
[1765277371279,0.05430245,132.37,132.36,9.99350728]
[1765277371585,0.05430245,132.37,132.36,6.7997]
[1765277374080,3.21430245,132.37,132.36,6.7997]
[1765277374386,0.05430245,132.37,132.36,6.7997]
[1765277378285,3.21430245,132.37,132.36,6.7997]
[1765277379389,0.05430245,132.37,132.36,6.7997]
[1765277380088,3.21430245,132.37,132.34,0.0506935]
[1765277381585,3.21430245,132.37,132.35,6.8001]
[1765277381992,3.21430245,132.37,132.34,0.0506935]
[1765277383589,3.21430245,132.37,132.34,6.8513935]
[1765277383995,3.16,132.36,132.34,0.0506935]
[1765277385898,3.21430245,132.37,132.34,6.8511935]
[1765277387599,3.21430245,132.37,132.35,6.8001]
[1765277387782,0.05430245,132.37,132.34,0.0506935]
[1765277388399,0.05430245,132.37,132.35,6.8002]
[1765277388897,3.21430245,132.37,132.35,6.8002]
[1765277391296,0.05430245,132.37,132.36,6.7997]
[1765277399495,3.07,132.43,132.4,6.7974]
[1765277400504,3.12339413,132.43,132.4,6.84886442]
[1765277401005,9.91959413,132.43,132.4,0.05146442]
[1765277401206,3.07,132.42,132.4,0.05146442]
[1765277402604,3.07,132.42,132.4,6.84916442]
[1765277403502,3.11,132.46,132.41,3.19380728]
[1765277403702,3.11,132.49,132.43,108.90890728]
[1765277404098,7.03248323,132.53,132.44,105.7086]
[1765277404099,3.11,132.53,132.44,105.7086]
[1765277404306,14.25778773,132.52,132.45,108.89590728]
[1765277404506,0.0533673,132.5,132.48,6.7932]
[1765277406107,0.0533673,132.5,132.47,3.24557493]
[1765277406311,3.1633673,132.5,132.47,0.05176765]
[1765277406507,3.11,132.54,132.47,3.24557493]
[1765277406706,3.11,132.54,132.47,3.19380728]
[1765277407009,3.11,132.53,132.47,3.19380728]
[1765277407514,3.16795693,132.51,132.49,0.05624457]
[1765277408112,0.05795693,132.51,132.49,10.04285185]
[1765277408309,3.11,132.55,132.49,108.91775185]
[1765277408513,3.11,132.57,132.51,3.19380728]
[1765277408816,3.11,132.57,132.53,6.7908]
[1765277409311,0.05149248,132.56,132.54,0.05030846]
[1765277409507,0.0561469,132.56,132.54,0.05061636]
[1765277409912,3.1661469,132.56,132.54,0.05061636]
[1765277410219,0.0561469,132.56,132.54,0.05061636]
[1765277410515,0.0561469,132.56,132.55,6.7898]
[1765277411805,3.1661469,132.56,132.54,0.05061636]
[1765277414606,6.30380728,132.55,132.45,108.89060728]
[1765277414810,3.11,132.54,132.45,3.19380728]
[1765277415115,3.11,132.51,132.46,6.7942]
[1765277415519,3.11,132.49,132.47,0.05535169]
[1765277416204,0.04880141,132.5,132.47,6.84925169]
[1765277416403,3.15880141,132.5,132.47,6.84925169]
[1765277421114,0.04880141,132.5,132.48,6.7933]
[1765277421712,9.8997,132.56,132.49,3.19380728]
[1765277422113,3.11,132.56,132.49,3.19380728]
[1765277422309,3.11,132.56,132.51,6.792]
[1765277422724,3.15794138,132.55,132.52,0.05401174]
[1765277427719,3.11,132.54,132.52,0.05401174]
[1765277431714,0.04794138,132.55,132.52,0.05401174]
[1765277431914,0.04794138,132.55,132.52,2.09337248]
[1765277432120,3.13,132.59,132.55,6.7899]
[1765277433128,3.13,132.57,132.56,0.05581146]
[1765277433631,3.17788431,132.58,132.56,0.05581146]
[1765277433826,0.04788431,132.58,132.56,6.84521146]
[1765277434225,0.04788431,132.58,132.56,8.8845722]
[1765277435325,0.04788431,132.58,132.56,6.84521146]
[1765277435530,0.04788431,132.58,132.56,8.8845722]
[1765277440338,3.17788431,132.58,132.56,6.84521146]
[1765277440532,0.04788431,132.58,132.56,6.84521146]
[1765277446534,3.17788431,132.58,132.56,6.84521146]
[1765277447434,9.919,132.57,132.53,6.7907]
[1765277447638,3.13,132.56,132.53,6.8307]
[1765277447932,9.9196,132.56,132.53,0.04]
[1765277448136,3.13,132.55,132.53,0.04]
[1765277448643,0.05076353,132.55,132.53,0.09555778]
[1765277449025,0.05076353,132.55,132.54,0.04]
[1765277449632,0.05076353,132.55,132.54,6.8305]
[1765277461641,3.13,132.6,132.58,0.05]
[1765277461842,3.36,132.63,132.59,0.05]
[1765277462042,3.36,132.63,132.6,2.08936074]
[1765277462250,3.36,132.63,132.61,0.05]
[1765277462444,3.41784403,132.63,132.61,0.10759871]
[1765277463646,0.05784403,132.63,132.61,0.10759871]
[1765277463947,0.05784403,132.63,132.62,8.87576074]
[1765277465036,0.05784403,132.63,132.61,0.05759871]
[1765277465037,3.44784403,132.63,132.61,0.05759871]
[1765277465842,3.39,132.62,132.54,0.1]
[1765277466045,2.09720477,132.63,132.54,0.1]
[1765277466046,3.39,132.6,132.54,0.1]
[1765277466250,3.39,132.6,132.56,2.13936074]
[1765277467050,0.05062288,132.59,132.57,0.05034522]
[1765277467253,3.44062288,132.59,132.57,0.05034522]
[1765277471254,10.22852288,132.59,132.57,0.05034522]
[1765277471656,3.39,132.58,132.57,0.05034522]
[1765277472655,3.39,132.58,132.47,441.44746498]
[1765277472656,3.39,132.57,132.53,2.03936074]
[1765277472846,3.39,132.56,132.51,2.13936074]
[1765277473260,3.39,132.56,132.52,0.15]
[1765277473648,3.39,132.54,132.53,0.05263603]
[1765277476149,0.05259344,132.55,132.53,0.20263603]
[1765277476845,3.44259344,132.55,132.53,0.20263603]
[1765277477253,3.44259344,132.55,132.53,0.05263603]
[1765277477870,0.05259344,132.55,132.53,6.99363603]
[1765277478159,0.05259344,132.55,132.54,0.15]
[1765277479062,0.05259344,132.55,132.54,6.9405]
[1765277482466,3.44259344,132.55,132.54,6.7905]
[1765277482763,3.44259344,132.55,132.54,6.9405]
[1765277482764,0.05259344,132.55,132.54,6.9405]
[1765277483156,0.05259344,132.55,132.54,6.7905]
[1765277484265,3.44259344,132.55,132.54,6.7905]
[1765277484467,0.05259344,132.55,132.54,6.9405]
[1765277487770,3.44259344,132.55,132.53,0.05263603]
[1765277490564,3.37,132.54,132.53,0.05263603]
[1765277492279,3.42259344,132.55,132.53,6.84363603]
[1765277494775,0.05259344,132.55,132.54,6.9405]
[1765277496370,3.42259344,132.55,132.53,6.99363603]
[1765277498469,0.05259344,132.55,132.54,0.15]
[1765277499470,0.05259344,132.55,132.53,6.84363603]
[1765277499776,0.05259344,132.55,132.54,6.9405]
[1765277500074,0.05259344,132.55,132.54,0.15]
[1765277502378,0.05259344,132.55,132.54,6.9405]
[1765277502576,3.37,132.61,132.55,0.1]
[1765277502771,3.37,132.59,132.55,0.1]
[1765277503078,3.37,132.59,132.54,3.18608718]
[1765277503079,3.37,132.6,132.57,0.1]
[1765277503680,3.42415947,132.6,132.57,0.15228863]
[1765277504579,3.37,132.59,132.57,0.05228863]
[1765277505679,10.1584,132.58,132.57,0.05228863]
[1765277508681,3.37,132.58,132.57,0.05228863]
[1765277514185,3.37,132.59,132.57,0.05228863]
[1765277519707,3.37,132.59,132.57,6.94108863]
[1765277519909,3.30415947,132.6,132.58,0.1]
[1765277520208,3.30415947,132.6,132.57,0.05228863]
[1765277520597,3.25,132.58,132.57,0.05228863]
[1765277520795,3.25,132.58,132.51,0.15]
[1765277521201,3.25,132.55,132.51,6.942]
[1765277521606,3.25,132.55,132.51,6.792]
[1765277521809,3.25,132.53,132.52,0.05698062]
[1765277522612,3.30086462,132.54,132.52,0.05698062]
[1765277529221,3.29,132.53,132.52,0.05698062]
[1765277535529,0.05086462,132.54,132.52,0.20698062]
[1765277535530,3.34086462,132.54,132.52,0.20698062]
[1765277536425,3.34086462,132.54,132.52,6.99828062]
[1765277536624,0.05086462,132.54,132.53,0.15]
[1765277537225,105.5854,132.6,132.54,0.15]
[1765277537226,3.29,132.6,132.54,0.15]
[1765277537527,3.29,132.6,132.55,0.15]
[1765277538230,0.04895683,132.59,132.57,6.9388]
[1765277538430,3.33895683,132.59,132.57,6.9388]
[1765277539829,3.33895683,132.59,132.57,6.7888]
[1765277540128,3.33895683,132.59,132.57,6.9388]
[1765277541420,0.04895683,132.59,132.58,6.7884]
[1765277541619,0.04895683,132.59,132.58,6.9384]
[1765277546831,0.04895683,132.59,132.58,8.9755955]
[1765277548534,3.29,132.63,132.59,0.15]
[1765277549430,3.34,132.61,132.6,0.0493578]
[1765277550424,3.39781293,132.62,132.6,0.1993578]
[1765277551027,3.39781293,132.62,132.6,0.0493578]
[1765277558838,3.34,132.61,132.56,6.789]
[1765277559144,3.34,132.59,132.52,2.2371955]
[1765277559333,3.34,132.59,132.53,0.2]
[1765277559742,3.34,132.56,132.55,0.05699435]
[1765277560438,3.34,132.56,132.55,6.84699435]
[1765277564336,3.34,132.56,132.55,0.05699435]
[1765277571447,5.3771955,132.56,132.5,62.0]
[1765277571661,3.34,132.53,132.49,0.2]
[1765277572550,3.34,132.51,132.5,0.04766996]
[1765277572951,3.39548869,132.52,132.51,6.792]
[1765277574449,3.39548869,132.52,132.5,0.04766996]
[1765277579158,3.39548869,132.52,132.5,7.10016996]
[1765277579459,0.05548869,132.52,132.51,0.26]
[1765277580451,0.05548869,132.52,132.51,7.052]
[1765277581264,3.21,132.54,132.52,7.0512]
[1765277581763,3.21,132.54,132.52,6.7912]
[1765277581960,3.21,132.54,132.5,9.13696546]
[1765277582152,3.26032793,132.53,132.5,9.13696546]
[1765277582353,3.26032793,132.53,132.5,2.34486546]
[1765277582755,3.26032793,132.53,132.51,6.792]
[1765277582948,3.26032793,132.53,132.5,0.04766996]
[1765277584162,3.26032793,132.53,132.5,0.30766996]
[1765277584565,3.26032793,132.53,132.5,0.04766996]
[1765277584765,3.26032793,132.53,132.5,6.84006996]
[1765277587569,3.26032793,132.53,132.5,7.10006996]
[1765277588161,3.26032793,132.53,132.51,7.052]
[1765277588371,3.23032793,132.53,132.51,7.052]
[1765277588564,3.23032793,132.53,132.51,6.792]
[1765277588866,3.23032793,132.53,132.5,6.84016996]
[1765277589463,3.23032793,132.53,132.5,7.10016996]
[1765277595670,3.23032793,132.53,132.5,6.84016996]
[1765277596568,2.0371955,132.52,132.5,0.04766996]
[1765277596778,3.18,132.51,132.45,0.26]
[1765277597162,3.18,132.49,132.44,2.3471955]
[1765277597364,3.18,132.49,132.44,0.31]
[1765277597666,3.18,132.49,132.45,6.7949]
[1765277597866,3.22956255,132.48,132.46,0.0540779]
[1765277601886,3.22956255,132.48,132.46,6.8485779]
[1765277602071,0.04956255,132.48,132.47,0.31]
[1765277603572,0.04956255,132.48,132.47,7.1041]
[1765277604471,3.18,132.51,132.48,7.1034]
[1765277604673,3.18,132.51,132.48,9.1405955]
[1765277605480,3.2285056,132.51,132.48,9.1405955]
[1765277608480,0.0485056,132.51,132.49,7.1026]
[1765277608776,0.0485056,132.51,132.5,0.31]
[1765277609278,0.0485056,132.51,132.5,7.1025]
[1765277644325,3.25,132.54,132.53,0.3]
[1765277644531,3.08,132.55,132.53,0.3]
[1765277644924,3.08,132.55,132.52,7.0914]
[1765277645418,3.13249706,132.55,132.52,7.14625767]
[1765277646330,3.13249706,132.55,132.53,0.29]
[1765277646530,3.13249706,132.55,132.53,7.081]
[1765277646826,3.13249706,132.55,132.53,6.791]
[1765277651134,3.13249706,132.55,132.53,7.081]
[1765277651630,3.13249706,132.55,132.54,0.29]
[1765277652027,0.05249706,132.55,132.54,7.0805]
[1765277655127,0.05249706,132.55,132.52,6.84585767]
[1765277655128,3.43249706,132.55,132.52,6.84585767]
[1765277655422,3.43249706,132.55,132.52,0.05485767]
[1765277655423,3.38,132.54,132.52,0.05485767]
[1765277657230,10.1705,132.54,132.52,0.05485767]
[1765277657437,3.38,132.54,132.52,0.05485767]
[1765277658728,10.171,132.53,132.52,0.05485767]
[1765277658934,16.00950388,132.53,132.52,0.05485767]
[1765277662543,9.21850388,132.53,132.52,0.05485767]
[1765277664646,14.90165251,132.53,132.52,0.05485767]
[1765277670952,14.90165251,132.53,132.52,0.36485767]
[1765277671160,5.83850388,132.53,132.52,0.36485767]
[1765277671854,0.05249706,132.55,132.52,0.36485767]
[1765277672158,14.67873332,132.54,132.52,0.36485767]
[1765277672350,3.22,132.54,132.52,0.36485767]
[1765277672649,3.22,132.54,132.52,7.15635767]
[1765277674852,3.22,132.54,132.53,6.791]
[1765277675051,9.05500613,132.54,132.53,6.791]
[1765277675351,9.05500613,132.54,132.52,0.05485767]
[1765277675352,3.22,132.53,132.52,0.05485767]
[1765277675854,9.05521114,132.53,132.52,0.05485767]
[1765277681654,5.83521114,132.53,132.52,7.15635767]
[1765277682653,9.05521114,132.53,132.52,7.15635767]
[1765277683156,3.22,132.53,132.52,7.15635767]
[1765277683365,9.05476752,132.53,132.52,7.15635767]
[1765277683659,3.22,132.54,132.53,6.7909]
[1765277683850,9.05481559,132.54,132.53,6.7909]
[1765277684849,3.22,132.54,132.53,6.7909]
[1765277685447,0.05249706,132.55,132.54,7.1005]
[1765277685653,5.88646251,132.55,132.54,7.1005]
[1765277687859,9.10646251,132.55,132.54,6.7905]
[1765277689265,3.22,132.54,132.52,7.15595767]
[1765277689668,3.22,132.54,132.52,6.84595767]
[1765277689869,3.22,132.54,132.52,7.15595767]
[1765277693061,3.22,132.54,132.52,0.05485767]
[1765277693463,9.05326266,132.53,132.52,0.05485767]
[1765277700461,2.09296126,132.55,132.52,0.35485767]
[1765277700462,3.21249706,132.55,132.52,0.35485767]
[1765277700663,9.00080543,132.54,132.52,0.35485767]
[1765277700862,3.16,132.54,132.52,0.35485767]
[1765277701064,3.16,132.54,132.52,0.05485767]
[1765277701473,3.16,132.54,132.52,6.84635767]
[1765277703274,3.37249706,132.55,132.53,0.31]
[1765277703570,5.84080958,132.54,132.53,0.31]
[1765277703772,5.84080958,132.54,132.53,7.101]
[1765277704074,5.84080958,132.54,132.53,9.1414642]
[1765277704566,0.05249706,132.55,132.54,6.7905]
[1765277704765,9.21252656,132.55,132.54,6.7905]
[1765277705173,3.37249706,132.55,132.54,6.7905]
[1765277708363,0.05249706,132.55,132.54,7.1005]
[1765277708569,0.05249706,132.55,132.54,9.1409642]
[1765277708765,3.32,132.58,132.54,2.3504642]
[1765277708969,3.32,132.58,132.56,0.31]
[1765277709175,3.32,132.6,132.56,0.31]
[1765277709968,3.37150834,132.59,132.57,0.0578744]
[1765277710462,3.37150834,132.59,132.57,6.8468744]
[1765277713575,3.37150834,132.59,132.57,7.1568744]
[1765277713877,0.05150834,132.59,132.58,7.0984]
[1765277715473,3.37150834,132.59,132.58,6.7884]
[1765277717282,0.05150834,132.59,132.58,7.0984]
[1765277718579,0.05150834,132.59,132.58,9.1388642]
[1765277719480,10.1064,132.63,132.58,2.3504642]
[1765277719782,3.32,132.62,132.6,0.31]
[1765277720591,3.3743748,132.62,132.6,0.36461519]
[1765277721784,3.3743748,132.62,132.6,0.05461519]
[1765277727292,3.3743748,132.62,132.6,6.84191519]
[1765277727586,3.3743748,132.62,132.6,7.15191519]
[1765277731280,0.0543748,132.62,132.61,0.31]
[1765277733196,3.1343748,132.62,132.6,7.15191519]
[1765277737391,3.1343748,132.62,132.61,0.31]
[1765277738991,3.1343748,132.62,132.6,6.84191519]
[1765277739193,3.1343748,132.62,132.6,7.15191519]
[1765277743996,3.1343748,132.62,132.6,0.05461519]
[1765277746000,9.9208748,132.62,132.6,0.05461519]
[1765277746198,3.08,132.61,132.6,0.05461519]
[1765277747103,3.08,132.6,132.56,6.7891]
[1765277748301,3.08,132.58,132.57,0.05502571]
[1765277754497,8.8163404,132.58,132.57,0.05502571]
[1765277755093,3.08,132.57,132.53,0.36]
[1765277755307,3.08,132.57,132.53,7.1508]
[1765277755507,3.08,132.57,132.53,6.7908]
[1765277756100,0.05287065,132.56,132.54,0.05171667]
[1765277756308,3.08,132.55,132.54,0.05171667]
[1765277758910,3.43287065,132.56,132.54,7.18201667]
[1765277759708,3.43287065,132.56,132.54,6.84201667]
[1765277760610,3.43287065,132.56,132.54,7.18201667]
[1765277760908,3.43287065,132.56,132.54,6.84201667]
[1765277761210,3.43287065,132.56,132.54,7.18201667]
[1765277762309,0.05287065,132.56,132.55,0.34]
[1765277762509,0.05287065,132.56,132.55,7.13]
[1765277763104,3.43287065,132.56,132.55,6.79]
[1765277763804,0.05287065,132.56,132.55,7.13]
[1765277767012,3.18,132.61,132.59,0.35]
[1765277767311,3.18,132.61,132.58,7.1384]
[1765277767506,3.18,132.61,132.58,0.35]
[1765277768010,3.23763894,132.61,132.58,0.05349621]
[1765277768708,3.18,132.6,132.58,6.84189621]
[1765277769210,3.18,132.6,132.58,0.05349621]
[1765277777520,3.18,132.6,132.58,0.40349621]
[1765277777915,3.18,132.6,132.58,0.05349621]
[1765277784514,3.18,132.6,132.55,6.7895]
[1765277785617,3.18,132.58,132.56,0.05789756]
[1765277787313,3.18,132.57,132.54,6.7905]
[1765277787623,3.18,132.56,132.54,6.7905]
[1765277788315,3.23382139,132.56,132.54,6.84343646]
[1765277791023,3.23382139,132.56,132.55,0.47]
[1765277791024,0.05382139,132.56,132.55,0.47]
[1765277791224,6.02408991,132.56,132.55,7.26]
[1765277791914,9.13408991,132.56,132.54,7.31343646]
[1765277792111,3.11,132.55,132.54,6.84343646]
[1765277792316,3.11,132.55,132.54,7.31343646]
[1765277792730,3.11,132.55,132.54,9.35233897]
[1765277792925,3.11,132.55,132.54,8.88233897]
[1765277799128,3.11,132.55,132.54,9.35233897]
[1765277800133,3.16382139,132.56,132.55,6.79]
[1765277800432,0.05382139,132.56,132.55,7.26]
[1765277808233,0.05382139,132.56,132.55,9.29890251]
[1765277821259,3.36,132.61,132.58,7.1982]
[1765277821453,11.38937116,132.6,132.59,0.41]
[1765277823563,3.41198944,132.61,132.59,0.41]
[1765277823953,3.41198944,132.61,132.58,8.8752384]
[1765277823954,3.41198944,132.61,132.58,9.2852384]
[1765277824149,10.19918944,132.61,132.58,2.0870384]
[1765277824354,14.73835495,132.6,132.58,0.04813589]
[1765277824563,3.36,132.59,132.58,0.04813589]
[1765277824764,9.09559475,132.59,132.58,0.04813589]
[1765277824971,15.88349475,132.59,132.58,0.04813589]
[1765277825257,3.36,132.58,132.55,2.03890251]
[1765277825463,3.36,132.56,132.55,2.03890251]
[1765277827660,3.36,132.56,132.54,0.0530577]
[1765277829568,3.36,132.55,132.54,0.0530577]
[1765277834878,3.11,132.56,132.54,0.5130577]
[1765277835880,0.05763686,132.57,132.55,0.46]
[1765277836081,0.05763686,132.57,132.56,0.46]
[1765277836275,0.05763686,132.57,132.55,2.03890251]
[1765277836276,8.9045783,132.57,132.55,2.49890251]
[1765277836585,0.05763686,132.57,132.56,0.46]
[1765277837780,3.16763686,132.57,132.55,9.28880251]
[1765277839490,3.16763686,132.57,132.55,8.82880251]
[1765277840079,3.16763686,132.57,132.55,9.28880251]
[1765277842888,3.16763686,132.57,132.55,2.03890251]
[1765277843083,3.16763686,132.57,132.54,0.0530577]
[1765277844489,3.11,132.56,132.54,0.0530577]
[1765277844985,3.11,132.56,132.54,0.5130577]
[1765277850994,0.05763686,132.57,132.56,0.46]
[1765277851286,5.78813479,132.57,132.56,0.46]
[1765277851787,3.22,132.56,132.55,2.03890251]
[1765277852094,3.22,132.56,132.54,6.8434577]
[1765277852294,3.22,132.56,132.54,0.0530577]
[1765277856093,3.22,132.55,132.54,0.0530577]
[1765277860496,3.22,132.55,132.54,6.8435577]
[1765277863705,3.27763686,132.57,132.55,7.2499]
[1765277864204,3.27763686,132.57,132.55,6.7899]
[1765277864594,3.27763686,132.57,132.55,7.2499]
[1765277867907,3.27763686,132.57,132.54,6.8435577]
[1765277868409,3.27763686,132.57,132.54,7.3035577]
[1765277870112,5.73985554,132.56,132.55,6.79]
[1765277870313,8.95985554,132.56,132.55,6.79]
[1765277870813,5.73985554,132.56,132.55,7.25]
[1765277874913,3.27763686,132.57,132.55,7.25]
[1765277877118,0.05763686,132.57,132.56,0.46]